bitfinex/quotes_ETHUSD_20251213
["timestamp","ask_amount","ask_price","bid_price","bid_amount"]
[1765605828271,0.6861,3089.3,3089.0,0.46]
[1765605829179,0.6861,3089.3,3089.1,3.23718882]
[1765605829548,0.3422,3089.2,3089.1,3.23718882]
[1765605831274,0.3422,3089.2,3088.9,6.4526017]
[1765605831474,0.3422,3089.2,3089.0,3.23724644]
[1765605835594,0.1904,3089.5,3088.9,3.23738076]
[1765605835794,0.4746,3089.4,3088.9,3.74738076]
[1765605835987,0.4746,3089.4,3089.0,0.97201094]
[1765605836763,0.3629,3089.1,3089.0,0.97201094]
[1765605837260,0.3629,3089.1,3088.9,3.74738076]
[1765605841596,0.1904,3089.5,3089.0,3.69213883]
[1765605841809,1.05517058,3089.5,3089.0,3.69213883]
[1765605842088,0.4746,3089.4,3089.0,3.69213883]
[1765605842291,0.58057058,3089.5,3089.0,3.23713883]
[1765605842681,1.05517058,3089.5,3089.0,6.92940129]
[1765605843297,0.4746,3089.4,3089.0,6.92940129]
[1765605843473,0.4746,3089.4,3089.0,6.47440129]
[1765605844706,0.4746,3089.4,3089.0,0.4856]
[1765605844905,0.90379877,3089.4,3088.9,3.74735312]
[1765605847709,0.4746,3089.3,3088.9,3.74735312]
[1765605847881,0.4746,3089.3,3089.0,2.75153883]
[1765605848208,0.1904,3089.5,3089.2,0.4856]
[1765605849215,0.665,3089.5,3089.2,0.4856]
[1765605849912,3.74651584,3089.8,3089.4,0.4856]
[1765605850125,1.05908251,3089.7,3089.4,0.4856]
[1765605850289,1.53368251,3089.7,3089.4,0.4856]
[1765605850621,0.1862,3090.0,3089.6,3.23713883]
[1765605850917,0.1862,3090.0,3089.7,0.4856]
[1765605850918,0.6608,3090.0,3089.7,0.4856]
[1765605851210,0.3629,3089.8,3089.6,2.75153883]
[1765605851412,0.0047,3089.7,3089.6,2.75153883]
[1765605851978,0.0047,3089.7,3089.4,2.75153883]
[1765605854985,0.3593,3089.5,3089.4,3.23683641]
[1765605855283,0.3593,3089.5,3089.3,0.51]
[1765605855484,0.4829,3089.4,3089.3,0.51]
[1765605855717,0.0083,3089.4,3089.3,0.51]
[1765605858222,0.4829,3089.4,3089.3,0.51]
[1765605858796,0.4829,3089.4,3089.3,3.74697925]
[1765605858999,0.0083,3089.4,3089.3,3.74697925]
[1765605859327,0.0083,3089.4,3089.3,3.23697925]
[1765605859898,0.4746,3089.6,3089.3,5.98851808]
[1765605860099,0.4665,3089.8,3089.3,6.93111808]
[1765605860310,0.90639818,3089.8,3089.3,6.93111808]
[1765605860799,0.43989818,3089.8,3089.3,6.46741808]
[1765605861008,0.43989818,3089.8,3089.5,2.75153883]
[1765605862000,0.90639818,3089.8,3089.5,2.75153883]
[1765605863031,0.90639818,3089.8,3089.4,6.45085722]
[1765605863929,3.42248176,3090.0,3089.4,5.98715722]
[1765605864135,0.4665,3089.8,3089.4,6.45085722]
[1765605864633,0.4665,3089.8,3089.4,5.98715722]
[1765605865022,0.371,3089.5,3089.4,2.7503786]
[1765605865225,0.371,3089.5,3089.3,3.23691247]
[1765605865404,0.4633,3089.4,3089.3,3.23691247]
[1765605865838,0.3741,3089.5,3089.3,3.23691247]
[1765605866035,3.23636998,3089.9,3089.3,3.23691247]
[1765605866241,0.498,3089.7,3089.4,3.23687162]
[1765605866824,0.3398,3089.5,3089.2,6.47416369]
[1765605867133,0.3398,3089.5,3089.2,6.96916369]
[1765605867944,0.498,3089.7,3089.2,6.96916369]
[1765605868149,0.498,3089.7,3089.4,3.23687447]
[1765605872048,3.92049123,3090.0,3089.6,0.485]
[1765605872214,0.39204912,3089.9,3089.6,0.485]
[1765605872413,0.89004912,3089.9,3089.6,0.485]
[1765605872846,0.498,3089.8,3089.4,3.23687447]
[1765605873165,0.498,3089.8,3089.4,3.73187447]
[1765605876353,0.1873,3089.9,3089.4,5.98762221]
[1765605876551,0.6853,3089.9,3089.4,6.48262221]
[1765605876756,0.6853,3089.9,3089.4,5.98762221]
[1765605876957,0.6853,3089.9,3089.5,0.495]
[1765605877136,0.498,3089.8,3089.4,6.48262221]
[1765605877335,0.498,3089.8,3089.4,3.73187447]
[1765605880322,0.1873,3089.9,3089.4,6.47374894]
[1765605880528,0.1873,3089.9,3089.5,0.495]
[1765605880746,3.73422655,3090.1,3089.5,0.495]
[1765605880941,4.48244251,3090.1,3089.5,0.495]
[1765605881772,3.98444251,3090.1,3089.5,3.73167204]
[1765605881940,0.498,3090.0,3089.5,3.73167204]
[1765605887068,3.73428555,3090.0,3089.5,0.495]
[1765605888368,0.498,3089.9,3089.5,0.495]
[1765605888779,0.498,3089.9,3089.5,3.73176094]
[1765605893088,0.498,3089.9,3089.5,0.495]
[1765605893393,0.498,3089.9,3089.4,5.98757568]
[1765605893569,0.6853,3089.9,3089.4,6.48257568]
[1765605895083,0.6853,3089.9,3089.4,3.73182794]
[1765605895286,0.4943,3089.8,3089.4,3.73182794]
[1765605896991,0.1873,3089.9,3089.5,0.4505]
[1765605897193,0.6816,3089.9,3089.5,3.68726734]
[1765605897696,0.6816,3089.9,3089.6,0.97186294]
[1765605899579,4.38458782,3089.9,3089.6,0.97186294]
[1765605899898,1.14820956,3089.9,3089.6,0.97186294]
[1765605900695,0.65390956,3089.9,3089.6,0.97186294]
[1765605900998,0.4943,3089.8,3089.6,0.97186294]
[1765605902201,0.65390956,3089.9,3089.6,0.97186294]
[1765605902371,1.14820956,3089.9,3089.6,0.97186294]
[1765605902567,0.46660956,3089.9,3089.6,0.97186294]
[1765605902768,0.46660956,3089.9,3089.6,1.42236294]
[1765605902998,0.46660956,3089.9,3089.6,0.97186294]
[1765605903297,0.96090956,3089.9,3089.5,3.23675216]
[1765605903507,0.96090956,3089.9,3089.6,0.97186294]
[1765605906820,0.001,3090.2,3089.8,0.4585]
[1765605907270,3.7313508,3090.2,3089.8,0.4585]
[1765605907476,3.7313508,3090.2,3089.8,4.19023801]
[1765605907477,0.4953,3090.2,3089.8,4.19023801]
[1765605907704,0.001,3090.2,3089.8,4.19023801]
[1765605907886,0.001,3090.2,3089.9,2.75037806]
[1765605908608,0.4953,3090.2,3089.9,2.75037806]
[1765605908906,0.4953,3090.2,3090.0,0.12957584]
[1765605911998,0.3485,3090.1,3090.0,0.12957584]
[1765605912385,0.8413,3090.1,3090.0,0.12957584]
[1765605915021,0.3485,3090.1,3090.0,0.12957584]
[1765605915796,0.8413,3090.1,3090.0,0.12957584]
[1765605916714,0.001,3090.2,3090.0,4.27477815]
[1765605916929,0.001,3090.2,3090.1,0.4585]
[1765605917309,0.3495,3090.2,3090.1,0.12956703]
[1765605921518,0.001,3090.2,3090.1,0.12956703]
[1765605923841,0.001,3090.2,3090.1,3.36570825]
[1765605924016,0.001,3090.2,3090.1,0.12956703]
[1765605924318,0.001,3090.2,3090.1,0.59536703]
[1765605927636,0.8214,3090.2,3090.1,0.12956703]
[1765605930629,0.75542429,3090.2,3090.1,0.12956703]
[1765605930829,4.46336079,3090.2,3089.7,2.74970842]
[1765605931135,0.4719,3090.1,3089.9,0.97181572]
[1765605931301,0.4719,3090.1,3089.7,0.58047529]
[1765605931625,0.4719,3090.1,3089.8,0.97183776]
[1765605932012,0.4719,3090.1,3089.8,3.72154618]
[1765605932394,0.4719,3090.1,3089.8,2.74970842]
[1765605932597,0.4719,3090.1,3089.8,3.72154618]
[1765605933133,0.4719,3090.1,3089.9,0.4719]
[1765605933428,0.3706,3090.0,3089.9,0.4719]
[1765605933804,0.001,3090.2,3089.9,3.70821363]
[1765605934012,0.4729,3090.2,3089.9,3.70821363]
[1765605937237,0.4729,3090.2,3089.9,0.4719]
[1765605940410,0.4729,3090.2,3089.9,3.70824199]
[1765605941635,0.3706,3090.0,3089.6,2.74970842]
[1765605941970,0.3706,3090.0,3089.7,3.69540236]
[1765605942635,0.001,3090.2,3089.9,0.474]
[1765605943106,0.001,3090.2,3089.9,0.9329]
[1765605943311,0.001,3090.2,3089.9,4.16920456]
[1765605944041,0.001,3090.2,3090.0,2.74970842]
[1765605944355,0.001,3090.2,3090.1,0.474]
[1765605946243,0.001,3090.2,3090.1,0.9329]
[1765605950244,0.001,3090.2,3090.1,4.16904122]
[1765605950751,0.001,3090.2,3090.1,0.9329]
[1765605951050,0.001,3090.2,3090.1,0.474]
[1765605957751,0.001,3090.2,3090.1,3.83970867]
[1765605959360,0.001,3090.2,3090.1,4.31630867]
[1765605959522,0.001,3090.2,3090.1,7.0655121]
[1765605961256,0.001,3090.2,3090.1,3.82937088]
[1765605961855,0.001,3090.2,3090.1,7.0655121]
[1765605963248,0.001,3090.2,3090.1,6.5889121]
[1765605963754,0.001,3090.2,3090.1,7.0655121]
[1765605967040,0.001,3090.2,3090.1,6.5889121]
[1765605969651,0.001,3090.2,3090.1,7.0655121]
[1765605969846,0.001,3090.2,3090.1,6.5889121]
[1765605970244,0.001,3090.2,3090.1,7.0655121]
[1765605972172,0.001,3090.2,3090.1,6.7386121]
[1765605972378,0.001,3090.2,3090.1,7.2152121]
[1765605979585,0.001,3090.2,3090.1,8.26035778]
[1765605982868,0.001,3090.2,3090.1,24.42571578]
[1765605983971,0.001,3090.2,3090.1,27.17491921]
[1765605984585,0.001,3090.2,3090.1,24.42571578]
[1765605987885,0.001,3090.2,3090.1,24.42490377]
[1765605993192,0.001,3090.2,3090.1,24.42474827]
[1765605996493,0.001,3090.2,3090.1,38.83986556]
[1765606000701,0.001,3090.2,3090.1,37.70040356]
[1765606001074,0.001,3090.2,3090.1,37.11899956]
[1765606001797,0.001,3090.2,3090.1,30.53674156]
[1765606003006,0.001,3090.2,3090.1,32.67130456]
[1765606003894,0.001,3090.2,3090.1,23.81805256]
[1765606004403,0.001,3090.2,3090.1,20.90293456]
[1765606004803,0.001,3090.2,3090.1,23.24489156]
[1765606005008,0.001,3090.2,3090.1,22.62567456]
[1765606005802,0.001,3090.2,3090.1,8.83986556]
[1765606006009,0.001,3090.2,3090.1,22.51780556]
[1765606006808,0.001,3090.2,3090.1,8.83986556]
[1765606006976,0.001,3090.2,3090.1,16.66145556]
[1765606007181,0.001,3090.2,3090.1,16.18485556]
[1765606007506,0.001,3090.2,3090.1,15.59718256]
[1765606007708,0.3439,3090.2,3090.1,6.69441988]
[1765606007906,0.8423,3090.2,3090.1,3.94618396]
[1765606008106,0.8423,3090.2,3090.1,0.71004274]
[1765606008320,0.8423,3090.2,3090.1,3.94618396]
[1765606023722,0.8423,3090.2,3090.1,6.69441988]
[1765606023925,0.8423,3090.2,3090.1,6.69530603]
[1765606025332,0.8423,3090.2,3090.1,3.94618396]
[1765606025535,0.8423,3090.2,3090.1,6.69530603]
[1765606028622,0.834,3090.2,3090.1,0.12956745]
[1765606028923,0.834,3090.2,3089.8,0.51]
[1765606029107,0.2016,3089.9,3089.8,1.09047529]
[1765606029500,0.6917,3089.9,3089.8,1.09047529]
[1765606029714,0.6917,3089.9,3089.8,1.58057529]
[1765606030491,0.6917,3089.9,3089.8,1.0001]
[1765606032596,0.6917,3089.9,3089.8,0.4901]
[1765606032793,1.08448476,3089.9,3089.8,0.4901]
[1765606035227,4.32083545,3089.9,3089.8,0.4901]
[1765606036201,1.08448476,3089.9,3089.8,0.4901]
[1765606042940,1.08448476,3089.9,3089.8,3.23922207]
[1765606043143,0.5033,3089.9,3089.8,3.23922207]
[1765606047235,0.6921,3089.9,3089.8,0.4901]
[1765606051763,3.43835069,3089.9,3089.8,0.4901]
[1765606051935,3.89155069,3089.9,3089.4,3.26023355]
[1765606052132,0.4532,3089.8,3089.5,0.97193536]
[1765606052333,0.38783507,3089.7,3089.5,0.97193536]
[1765606052533,0.3815,3089.6,3089.5,0.97193536]
[1765606053498,0.8339,3089.6,3089.5,0.97193536]
[1765606053795,0.8339,3089.6,3089.0,0.97208653]
[1765606054087,6.47374894,3089.4,3089.0,0.97208653]
[1765606054234,0.3815,3089.1,3089.0,0.97208653]
[1765606054745,0.8339,3089.1,3089.0,0.97208653]
[1765606055239,3.62441092,3089.7,3089.0,1.47198653]
[1765606055449,4.19990864,3089.6,3089.2,2.75023355]
[1765606055857,0.3815,3089.3,3089.2,2.75023355]
[1765606056369,0.3815,3089.3,3089.2,2.75101837]
[1765606057573,0.8339,3089.3,3089.2,2.75101837]
[1765606069590,0.3815,3089.3,3089.0,0.97208653]
[1765606069796,0.8339,3089.3,3089.2,2.75101837]
[1765606075001,0.3815,3089.3,3089.2,2.75101837]
[1765606075170,0.8339,3089.3,3089.2,2.75101837]
[1765606076674,0.3815,3089.3,3089.2,2.75101837]
[1765606077693,3.23687606,3089.4,3089.2,3.24531837]
[1765606077891,3.23680907,3089.5,3089.2,3.24531837]
[1765606078073,4.49578058,3089.5,3089.2,3.24531837]
[1765606078474,4.01918058,3089.5,3089.4,2.75101837]
[1765606078996,4.49838058,3089.5,3089.4,2.75101837]
[1765606079202,4.85418058,3089.5,3089.4,2.75101837]
[1765606079387,4.85418058,3089.5,3089.2,2.75101837]
[1765606079597,1.33668515,3089.4,3089.2,2.75101837]
[1765606079803,0.3583,3089.3,3089.2,2.75101837]
[1765606079983,0.8337,3089.3,3089.2,2.75101837]
[1765606080726,0.8337,3089.3,3088.8,0.002]
[1765606080883,0.192,3088.9,3088.8,0.002]
[1765606081296,0.6686,3088.9,3088.8,0.002]
[1765606081497,3.90599842,3088.9,3088.8,0.002]
[1765606081694,4.62032095,3088.9,3088.8,0.002]
[1765606081885,1.38292253,3088.9,3088.8,0.002]
[1765606083001,1.19572253,3088.9,3088.8,0.002]
[1765606084318,4.43312095,3088.9,3088.8,0.002]
[1765606101463,3.95652095,3088.9,3088.8,0.002]
[1765606101654,5.36662495,3088.9,3088.8,0.002]
[1765606101825,5.49627639,3088.9,3088.8,0.002]
[1765606104738,4.87202495,3088.9,3088.8,0.002]
[1765606104940,4.87202495,3088.9,3088.8,2.75418123]
[1765606107774,4.46652095,3088.9,3088.8,2.75418123]
[1765606108774,4.92822095,3088.9,3088.8,2.75418123]
[1765606109274,4.46652095,3088.9,3088.8,2.75418123]
[1765606109487,0.71432253,3088.9,3088.8,3.67608123]
[1765606109650,3.23729362,3089.0,3088.8,3.67608123]
[1765606109864,3.23729362,3089.0,3088.9,2.75218123]
[1765606111878,3.23729362,3089.0,3088.9,2.75154649]
[1765606113391,3.23729362,3089.0,3088.9,3.21784649]
[1765606113562,3.98191373,3089.0,3088.9,3.21784649]
[1765606118507,4.36121373,3089.0,3088.9,2.75154649]
[1765606119808,4.82201373,3089.0,3088.9,2.75154649]
[1765606121311,8.05930735,3089.0,3088.8,2.75392462]
[1765606121479,0.4663,3088.9,3088.8,2.75392462]
[1765606122298,1.28585074,3088.9,3088.8,2.75392462]
[1765606123402,4.06154916,3088.9,3088.8,2.75392462]
[1765606134446,4.06154916,3088.9,3088.8,3.22022462]
[1765606140169,4.05694916,3088.9,3088.8,3.22022462]
[1765606143372,0.51,3089.1,3088.8,3.22022462]
[1765606143676,0.4904,3089.3,3089.0,0.49]
[1765606143677,0.51,3089.2,3089.0,0.49]
[1765606143880,0.51,3089.2,3089.1,2.75192462]
[1765606144184,0.51,3089.3,3089.1,3.24192462]
[1765606144340,0.78438722,3089.2,3089.1,2.75192462]
[1765606144541,4.35837125,3089.2,3089.1,2.75192462]
[1765606146379,8.48975928,3089.2,3088.8,2.75392462]
[1765606146576,3.24229842,3088.9,3088.8,2.75392462]
[1765606146945,3.73269842,3088.9,3088.8,2.75392462]
[1765606148414,0.0049,3088.9,3088.8,2.75392462]
[1765606152121,0.0049,3088.9,3088.8,2.75370332]
[1765606156951,0.0049,3088.9,3088.8,0.002]
[1765606157152,0.0049,3088.9,3088.8,2.75370332]
[1765606160841,0.0049,3088.9,3088.8,0.002]
[1765606163442,0.51,3089.1,3088.8,0.945]
[1765606163638,4.02148416,3089.2,3089.0,3.20780332]
[1765606163979,0.44785842,3089.1,3089.0,3.20780332]
[1765606164342,0.81765842,3089.1,3089.0,3.20780332]
[1765606165547,0.81765842,3089.1,3089.0,2.75170332]
[1765606167555,4.05484724,3089.1,3089.0,2.75170332]
[1765606169073,0.81765842,3089.1,3089.0,2.75170332]
[1765606171275,4.05484724,3089.1,3089.0,2.75170332]
[1765606172274,0.81765842,3089.1,3089.0,2.75170332]
[1765606173273,0.81765842,3089.1,3088.8,0.002]
[1765606173274,0.81765842,3089.1,3088.8,2.75370332]
[1765606173453,0.81765842,3089.1,3088.8,3.24400332]
[1765606173971,0.44785842,3089.1,3089.0,0.4699]
[1765606174571,3.74711807,3089.2,3089.0,0.4699]
[1765606174981,3.23700271,3089.3,3089.1,0.4699]
[1765606175156,0.51,3089.2,3089.1,3.71174243]
[1765606175350,0.51,3089.2,3089.1,3.22144243]
[1765606176682,0.97070879,3089.2,3089.1,3.22144243]
[1765606179978,5.03389282,3089.2,3088.8,2.75354243]
[1765606180287,5.03389282,3089.2,3088.8,3.24384243]
[1765606182645,4.58449282,3089.2,3088.8,2.75354243]
[1765606182846,0.4494,3089.1,3088.8,0.002]
[1765606183088,0.0045,3088.9,3088.8,0.002]
[1765606183289,0.51,3088.9,3088.8,0.002]
[1765606183458,0.51,3088.9,3088.8,0.4719]
[1765606183658,1.23259248,3089.1,3088.8,0.4719]
[1765606183967,1.7993861,3089.1,3089.0,0.4699]
[1765606184274,0.82708848,3089.1,3089.0,0.4699]
[1765606184480,3.74708403,3089.2,3089.0,0.4699]
[1765606184684,3.74708403,3089.2,3089.0,3.22155022]
[1765606185452,0.3767,3089.1,3089.0,2.75165022]
[1765606185780,0.3767,3089.1,3088.8,3.24395022]
[1765606186778,3.61398612,3089.1,3088.8,3.24395022]
[1765606195395,3.61398612,3089.1,3088.9,2.75165022]
[1765606195696,4.49232596,3089.1,3088.9,2.75165022]
[1765606199682,7.72961208,3089.1,3088.9,2.75165022]
[1765606201306,4.49232596,3089.1,3088.9,2.75165022]
[1765606201727,3.23711736,3089.2,3089.0,0.4813]
[1765606202011,3.23711736,3089.2,3089.1,3.23295022]
[1765606202384,0.405504,3089.6,3089.1,6.63400044]
[1765606202582,3.74681827,3089.5,3089.4,2.75165022]
[1765606202988,4.57271827,3089.5,3089.4,2.75165022]
[1765606203176,6.03118007,3089.5,3089.4,2.75165022]
[1765606203373,9.26799834,3089.5,3089.2,2.75165022]
[1765606203568,3.23697925,3089.3,3088.8,3.725784]
[1765606203768,3.23697925,3089.3,3088.8,2.75365022]
[1765606203769,6.4739585,3089.3,3088.8,2.75365022]
[1765606204013,0.4765,3089.2,3088.8,0.002]
[1765606204198,0.69504585,3089.1,3088.8,0.002]
[1765606204705,0.4765,3089.0,3088.8,0.002]
[1765606206204,3.58799842,3088.9,3088.8,0.002]
[1765606206613,4.06329842,3088.9,3088.8,0.002]
[1765606219849,3.58799842,3088.9,3088.8,0.002]
[1765606220220,4.17274454,3088.9,3088.8,0.002]
[1765606221819,4.64804454,3088.9,3088.8,0.002]
[1765606222963,4.17274454,3088.9,3088.8,0.002]
[1765606223868,4.64804454,3088.9,3088.8,0.002]
[1765606224068,4.17274454,3088.9,3088.8,0.002]
[1765606228871,4.17274454,3088.9,3088.8,2.75426648]
[1765606229273,3.74734238,3089.0,3088.8,3.71006648]
[1765606229574,3.74734238,3089.0,3088.9,3.21246648]
[1765606235888,3.74734238,3089.0,3088.9,0.4602]
[1765606241076,3.23734238,3089.0,3088.9,0.9558]
[1765606243084,3.23734238,3089.0,3088.9,0.4602]
[1765606250812,6.47416806,3089.2,3088.9,0.4602]
[1765606251110,0.51,3089.1,3088.9,0.9558]
[1765606253217,3.23729362,3089.0,3088.9,0.9558]
[1765606256022,3.23729362,3089.0,3088.9,0.4602]
[1765606257622,3.23729362,3089.0,3088.9,0.913]
[1765606258321,3.74723396,3089.1,3088.9,0.913]
[1765606258817,3.74723396,3089.1,3088.9,0.4602]
[1765606259021,4.57074088,3089.1,3088.9,0.4602]
[1765606259423,4.57074088,3089.1,3088.9,0.913]
[1765606260818,4.06074088,3089.1,3088.9,0.4602]
[1765606261032,3.2367697,3089.5,3089.0,3.69559925]
[1765606261197,0.51,3089.4,3089.1,0.4911]
[1765606261394,3.2367697,3089.5,3089.1,0.9439]
[1765606261599,0.51,3089.4,3089.1,0.9439]
[1765606263734,3.23697925,3089.3,3089.1,0.9439]
[1765606264110,3.23697925,3089.3,3089.1,0.4911]
[1765606267317,3.72027925,3089.3,3089.1,0.4911]
[1765606268214,3.23697925,3089.3,3089.1,0.4911]
[1765606270944,3.74689523,3089.4,3089.2,0.4911]
[1765606271240,4.23019523,3089.4,3089.0,3.20449925]
[1765606271611,3.74689523,3089.4,3089.0,2.75169925]
[1765606271812,6.98379046,3089.4,3089.0,2.75169925]
[1765606272010,6.98379046,3089.4,3089.0,3.20449925]
[1765606272011,7.46709046,3089.4,3089.0,3.20449925]
[1765606272553,7.46709046,3089.4,3089.0,0.4528]
[1765606272742,0.4833,3089.3,3088.9,2.75169925]
[1765606273642,0.4833,3089.3,3088.9,3.20449925]
[1765606274319,3.74689523,3089.4,3089.0,0.4528]
[1765606274517,4.23019523,3089.4,3089.0,0.4528]
[1765606275140,3.72019523,3089.4,3089.0,0.4528]
[1765606275346,4.23019523,3089.4,3089.0,0.4528]
[1765606278148,3.74689523,3089.4,3089.0,0.4528]
[1765606279052,4.23019523,3089.4,3089.0,0.4528]
[1765606286624,3.74680993,3089.5,3089.3,0.4562]
[1765606286948,4.75846185,3089.5,3089.4,0.4562]
[1765606288756,5.12866185,3089.5,3089.2,2.7513135]
[1765606288958,5.12866185,3089.5,3089.2,3.2462135]
[1765606289132,8.36547178,3089.5,3089.1,0.1847]
[1765606289331,8.82127178,3089.5,3089.0,0.4949]
[1765606293172,3.69276753,3089.4,3089.0,0.4949]
[1765606297989,3.69276753,3089.4,3089.0,3.24647697]
[1765606303173,3.23696753,3089.4,3089.0,2.75157697]
[1765606303377,3.23696753,3089.4,3089.1,0.4949]
[1765606304149,4.75843992,3089.5,3089.3,0.4562]
[1765606305277,4.75843992,3089.5,3089.4,0.4562]
[1765606307586,4.24843992,3089.5,3089.4,0.4562]
[1765606307782,4.75843992,3089.5,3089.4,0.4562]
[1765606308177,5.12863992,3089.5,3089.2,2.75157697]
[1765606308480,5.12863992,3089.5,3089.2,3.24647697]
[1765606314577,5.12863992,3089.5,3089.2,0.4949]
[1765606314980,8.36542792,3089.5,3089.2,0.4949]
[1765606315196,0.93375617,3089.4,3089.1,2.93605232]
[1765606315496,8.82122792,3089.5,3089.1,3.40845232]
[1765606315670,8.45102792,3089.5,3089.1,3.40845232]
[1765606316594,0.4582,3089.4,3089.1,2.75135232]
[1765606316766,3.69517003,3089.4,3089.1,2.75135232]
[1765606317794,3.69517003,3089.4,3088.9,3.22375232]
[1765606319569,3.69517003,3089.4,3089.0,0.4724]
[1765606320297,3.23697003,3089.4,3089.0,0.4724]
[1765606321198,0.97213378,3089.3,3089.0,0.4724]
[1765606323402,0.97213378,3089.3,3089.2,0.4554]
[1765606325179,4.20911303,3089.3,3089.2,0.4554]
[1765606327220,5.03521303,3089.3,3088.9,2.75135232]
[1765606327418,5.03521303,3089.3,3088.9,3.22375232]
[1765606327709,4.06307925,3089.3,3088.9,3.22375232]
[1765606327912,0.97213378,3089.2,3088.9,3.22375232]
[1765606330878,0.97213378,3089.2,3088.9,2.75135232]
[1765606331079,0.97213378,3089.2,3089.1,0.4554]
[1765606333014,8.23604241,3089.2,3088.8,0.002]
[1765606333215,0.827,3089.1,3088.8,2.75335232]
[1765606333414,3.23702685,3089.3,3088.8,3.22575232]
[1765606333716,3.23702685,3089.3,3089.0,0.4554]
[1765606333885,1.3290589,3089.2,3089.0,0.4554]
[1765606334933,0.35685896,3089.2,3089.0,0.4554]
[1765606335140,0.97219994,3089.1,3089.0,0.4554]
[1765606335489,1.34099994,3089.1,3088.8,2.75335232]
[1765606335689,1.34099994,3089.1,3088.8,3.22575232]
[1765606335887,0.3688,3089.1,3088.8,3.22575232]
[1765606336187,0.97219994,3089.0,3088.8,3.22575232]
[1765606339919,0.97219994,3089.0,3088.8,2.75335232]
[1765606340122,0.97219994,3089.0,3088.9,0.4974]
[1765606340305,0.3513,3088.9,3088.8,0.002]
[1765606340614,0.8259,3088.9,3088.8,0.002]
[1765606341027,1.7981535,3088.9,3088.8,0.002]
[1765606343834,1.87809239,3088.9,3088.8,0.002]
[1765606344047,2.35269239,3088.9,3088.8,0.002]
[1765606347418,1.87809239,3088.9,3088.8,0.002]
[1765606347626,2.34729239,3088.9,3088.8,0.002]
[1765606351642,1.7927535,3088.9,3088.8,0.002]
[1765606356253,5.03015192,3088.9,3088.8,0.002]
[1765606356552,5.43565592,3088.9,3088.8,0.002]
[1765606360447,5.94565592,3088.9,3088.8,0.002]
[1765606362561,12.31536519,3088.9,3088.8,0.002]
[1765606362748,13.87063114,3088.9,3088.8,0.002]
[1765606371351,13.40143114,3088.9,3088.8,0.002]
[1765606373139,13.87063114,3088.9,3088.8,0.002]
[1765606380189,13.36063114,3088.9,3088.8,0.002]
[1765606380363,13.87063114,3088.9,3088.8,0.002]
[1765606382058,13.05013114,3088.9,3088.8,0.4598]
[1765606382357,13.05013114,3088.9,3088.8,0.9275]
[1765606382558,13.05013114,3088.9,3088.8,0.4598]
[1765606383860,13.39313114,3088.9,3088.8,0.002]
[1765606385977,12.88313114,3088.9,3088.8,0.002]
[1765606386164,13.39313114,3088.9,3088.8,0.002]
[1765606392162,13.05013114,3088.9,3088.8,0.4598]
[1765606392567,12.54013114,3088.9,3088.8,0.4598]
[1765606392867,13.05013114,3088.9,3088.8,0.4598]
[1765606393044,12.54013114,3088.9,3088.8,0.4598]
[1765606393236,12.07787764,3088.9,3088.8,0.4598]
[1765606393634,12.07787764,3088.9,3088.8,0.9275]
[1765606396966,13.00537764,3088.9,3088.8,0.9275]
[1765606397166,12.07787764,3088.9,3088.8,0.4598]
[1765606398464,12.54757764,3088.9,3088.8,0.4598]
[1765606398970,12.54757764,3088.9,3088.8,0.9275]
[1765606399565,12.03757764,3088.9,3088.8,0.9275]
[1765606399767,12.54757764,3088.9,3088.8,0.9275]
[1765606400947,12.07787764,3088.9,3088.8,0.9275]
[1765606404747,12.07787764,3088.9,3088.8,0.4598]
[1765606405678,12.53727764,3088.9,3088.8,0.002]
[1765606406584,12.90487764,3088.9,3088.8,0.002]
[1765606407482,12.39487764,3088.9,3088.8,0.002]
[1765606407670,12.90487764,3088.9,3088.8,0.002]
[1765606413482,12.53727764,3088.9,3088.8,0.002]
[1765606414283,11.56787764,3088.9,3088.8,0.4932]
[1765606414486,12.07787764,3088.9,3088.8,0.4932]
[1765606418064,12.42057764,3088.9,3088.8,0.002]
[1765606428765,12.90367764,3088.9,3088.8,0.002]
[1765606429494,12.42057764,3088.9,3088.8,0.002]
[1765606431198,12.90367764,3088.9,3088.8,0.002]
[1765606438219,12.42057764,3088.9,3088.8,0.002]
[1765606438427,12.89927764,3088.9,3088.8,0.002]
[1765606438727,12.42057764,3088.9,3088.8,0.002]
[1765606440635,12.07787764,3088.9,3088.8,0.4929]
[1765606441628,11.56787764,3088.9,3088.8,0.4929]
[1765606442133,12.57077764,3088.9,3088.8,0.9786]
[1765606446941,12.57077764,3088.9,3088.8,0.4929]
[1765606448547,12.06077764,3088.9,3088.8,0.4929]
[1765606448842,12.57077764,3088.9,3088.8,0.4929]
[1765606450839,12.06077764,3088.9,3088.8,0.4929]
[1765606451048,11.01551169,3088.9,3088.8,0.9786]
[1765606452813,6.86260927,3088.9,3088.8,0.4929]
[1765606453154,0.51,3089.4,3088.8,4.7034453]
[1765606453442,0.405504,3089.3,3088.8,4.2125453]
[1765606453647,0.405504,3089.3,3088.9,0.4857]
[1765606453944,1.37773544,3089.3,3089.2,0.4909]
[1765606454452,1.37773544,3089.3,3089.2,0.9766]
[1765606455646,4.61471469,3089.3,3089.2,0.9766]
[1765606456945,4.20921069,3089.3,3089.2,0.9766]
[1765606457637,3.23697925,3089.3,3089.2,0.9766]
[1765606457811,3.23697925,3089.3,3089.2,1.94875898]
[1765606458016,3.23697925,3089.3,3089.2,0.9766]
[1765606464726,3.23697925,3089.3,3089.2,0.4677]
[1765606465651,3.23697925,3089.3,3089.2,0.9663]
[1765606468152,4.20913823,3089.3,3089.2,0.9663]
[1765606468553,4.20913823,3089.3,3089.2,0.4677]
[1765606478139,4.20913823,3089.3,3089.2,3.71790412]
[1765606479940,4.20913823,3089.3,3089.2,0.9663]
[1765606481838,4.20913823,3089.3,3089.0,2.27817341]
[1765606482146,3.23697925,3089.3,3089.0,2.27817341]
[1765606482538,0.97215898,3089.2,3089.0,2.27817341]
[1765606483470,3.23697925,3089.3,3089.0,2.27817341]
[1765606484275,4.20911303,3089.3,3089.0,2.27817341]